bitfinex/quotes_BTCUSD_20210402
["timestamp","ask_amount","ask_price","bid_price","bid_amount"]
[1617379225135,0.28635638,59588.0,59577.0,1.0]
[1617379225336,0.04,59587.0,59577.0,1.0]
[1617379225536,0.28635638,59586.0,59582.0,0.251755]
[1617379225760,0.48435638,59586.0,59582.0,0.30191252]
[1617379225958,0.28635638,59585.0,59577.0,1.0]
[1617379226157,0.34,59584.0,59577.0,1.0]
[1617379226363,0.159,59578.0,59577.0,1.0]
[1617379226561,0.24970525,59578.0,59577.0,1.335609]
[1617379226758,0.25070525,59584.0,59577.0,1.0]
[1617379226957,0.53706163,59584.0,59577.0,1.0]
[1617379227158,0.28635638,59584.0,59577.0,0.99475233]
[1617379227355,0.28635638,59589.0,59577.0,0.99475233]
[1617379227557,0.43348449,59590.0,59577.0,0.99475233]
[1617379227756,0.58635638,59589.0,59577.0,0.99475233]
[1617379227953,0.32635638,59588.0,59577.0,0.99475233]
[1617379228166,3.755,59578.0,59577.0,0.99475233]
[1617379228396,4.51749079,59578.0,59577.0,0.99475233]
[1617379228584,5.90588453,59578.0,59577.0,0.99475233]
[1617379228787,6.07288453,59578.0,59577.0,0.99475233]
[1617379228990,6.07126298,59578.0,59577.0,0.99475233]
[1617379229585,6.42642822,59578.0,59577.0,0.99475233]
[1617379229788,6.58642822,59578.0,59577.0,0.99475233]
[1617379229990,0.75348743,59577.0,59548.0,0.29227936]
[1617379230196,0.00039821,59561.0,59548.0,0.3358]
[1617379230390,0.05032661,59561.0,59548.0,0.3358]
[1617379230670,0.164,59554.0,59548.0,0.3358]
[1617379230861,0.09032661,59561.0,59552.0,0.335788]
[1617379231058,0.0499284,59561.0,59552.0,0.335788]
[1617379231856,0.0499284,59561.0,59547.0,0.0503085]
[1617379232061,0.0499284,59561.0,59535.0,0.29491839]
[1617379232062,0.16,59554.0,59535.0,0.29491839]
[1617379232270,0.32635638,59553.0,59536.0,0.335876]
[1617379232462,0.158,59555.0,59536.0,0.335876]
[1617379232661,0.158,59555.0,59537.0,0.29145292]
[1617379232858,0.158,59555.0,59531.0,0.29449016]
[1617379233066,0.161,59546.0,59531.0,0.00303724]
[1617379233271,0.161,59537.0,59517.0,0.252001]
[1617379233463,0.252015,59539.0,59522.0,0.335985]
[1617379233661,0.252015,59539.0,59520.0,0.00303724]
[1617379233859,0.252015,59539.0,59522.0,0.00303724]
[1617379234061,0.252015,59539.0,59518.0,0.00303724]
[1617379234263,0.164,59538.0,59518.0,1.00303724]
[1617379234461,0.164,59538.0,59518.0,0.00303724]
[1617379235264,0.164,59538.0,59519.0,1.0]
[1617379235463,0.15930741,59538.0,59519.0,1.336]
[1617379235663,0.15930741,59538.0,59520.0,0.00303724]
[1617379236065,0.15930741,59538.0,59521.0,0.33599]
[1617379236462,0.15930741,59538.0,59522.0,0.145]
[1617379236664,0.15930741,59538.0,59518.0,0.00303724]
[1617379236868,0.15930741,59538.0,59519.0,0.05]
[1617379237177,0.1088919,59537.0,59512.0,0.29449016]
[1617379237363,0.15930741,59538.0,59514.0,0.00303724]
[1617379237564,0.15930741,59538.0,59515.0,0.336028]
[1617379237764,0.15930741,59538.0,59516.0,0.00303724]
[1617379237962,0.1084718,59537.0,59514.0,0.00303724]
[1617379238374,0.06254312,59539.0,59515.0,1.5]
[1617379238566,0.06254312,59539.0,59517.0,0.00303724]
[1617379238790,0.06254312,59539.0,59518.0,0.336009]
[1617379238989,0.06214312,59539.0,59519.0,0.29449016]
[1617379239200,0.162,59526.0,59520.0,0.480996]
[1617379239402,0.165,59520.0,59511.0,0.02]
[1617379239599,0.252104,59519.0,59511.0,0.02]
[1617379239992,0.27,59519.0,59511.0,0.02]
[1617379240196,0.6761268,59518.0,59511.0,0.02]
[1617379240400,0.285,59517.0,59511.0,0.02]
[1617379240590,0.2901988,59518.0,59511.0,0.02]
[1617379240996,0.27,59518.0,59511.0,0.02]
[1617379241431,0.27,59518.0,59511.0,0.01124032]
[1617379241629,0.284,59517.0,59511.0,0.01124032]
[1617379241827,0.14,59516.0,59511.0,0.01124032]
[1617379242231,0.284,59515.0,59511.0,0.01124032]
[1617379242427,0.27,59514.0,59511.0,0.01124032]
[1617379242631,0.01227628,59518.0,59511.0,0.01124032]
[1617379242829,0.138,59513.0,59511.0,0.01124032]
[1617379243039,0.01227628,59518.0,59511.0,0.01124032]
[1617379243633,0.01227628,59518.0,59515.0,0.33604]
[1617379243835,0.01227628,59518.0,59511.0,0.01124032]
[1617379244036,0.01227628,59518.0,59517.0,0.336026]
[1617379246498,0.01227628,59518.0,59517.0,0.591026]
[1617379246704,0.01227628,59518.0,59517.0,1.591026]
[1617379246902,0.01227628,59518.0,59517.0,1.631026]
[1617379247300,0.01227628,59518.0,59517.0,2.631026]
[1617379247695,0.01227628,59518.0,59517.0,1.631026]
[1617379248695,0.01227628,59518.0,59517.0,2.631026]
[1617379249496,0.01227628,59518.0,59517.0,2.639026]
[1617379249897,0.01227628,59518.0,59517.0,2.631026]
[1617379250497,0.00727628,59518.0,59517.0,1.642126]
[1617379250896,0.00727628,59518.0,59517.0,1.666126]
[1617379251497,0.00227628,59518.0,59517.0,1.666126]
[1617379251695,0.00227628,59518.0,59517.0,1.466126]
[1617379251916,0.00227628,59518.0,59517.0,1.426126]
[1617379252325,0.00227628,59518.0,59517.0,2.426126]
[1617379252720,0.00227628,59518.0,59517.0,1.402126]
[1617379253324,0.00227628,59518.0,59517.0,0.581026]
[1617379254948,0.00227628,59518.0,59517.0,0.391026]
[1617379255146,0.43152628,59518.0,59517.0,0.136026]
[1617379255551,0.43152628,59518.0,59511.0,0.01124032]
[1617379255947,0.43152628,59518.0,59512.0,0.138]
[1617379256143,0.43152628,59518.0,59511.0,0.01124032]
[1617379256543,0.72147116,59518.0,59511.0,0.01124032]
[1617379256749,0.28994488,59517.0,59511.0,0.01124032]
[1617379257158,0.43152628,59518.0,59511.0,0.01124032]
[1617379257355,0.5,59517.0,59511.0,0.01124032]
[1617379257767,0.135,59516.0,59511.0,0.01124032]
[1617379257958,0.43952684,59518.0,59511.0,0.01124032]
[1617379258956,0.43952684,59518.0,59511.0,0.13124032]
[1617379259162,0.01027684,59518.0,59512.0,0.138]
[1617379259360,0.01027684,59518.0,59512.0,0.188]
[1617379259792,0.225,59524.0,59511.0,0.01124032]
[1617379259793,0.386021,59523.0,59511.0,0.01124032]
[1617379259994,0.521021,59523.0,59511.0,0.01124032]
[1617379260394,0.521021,59523.0,59511.0,0.13124032]
[1617379260590,0.425,59522.0,59511.0,0.13124032]
[1617379260842,0.386021,59521.0,59511.0,0.18124032]
[1617379261241,0.64110874,59525.0,59511.0,0.18124032]
[1617379261442,0.386021,59524.0,59511.0,0.18124032]
[1617379261841,0.386021,59524.0,59511.0,0.06124032]
[1617379262043,0.638103,59524.0,59511.0,0.01124032]
[1617379262244,0.386021,59522.0,59511.0,0.01124032]
[1617379262441,0.386021,59520.0,59511.0,0.01124032]
[1617379262639,0.686021,59520.0,59511.0,0.01124032]
[1617379263243,0.686021,59520.0,59511.0,0.06095829]
[1617379263444,0.165,59519.0,59511.0,0.01124032]
[1617379263646,0.386021,59518.0,59511.0,0.01124032]
[1617379263842,0.729001,59518.0,59511.0,0.01124032]
[1617379264246,0.67596588,59516.0,59511.0,0.01124032]
[1617379264642,0.386021,59514.0,59511.0,0.01124032]
[1617379265039,0.386021,59514.0,59511.0,0.06093306]
[1617379265246,0.386021,59513.0,59511.0,0.01124032]
[1617379266842,0.252118,59515.0,59511.0,0.01124032]
[1617379266843,3.896021,59512.0,59511.0,0.01124032]
[1617379267043,4.18596588,59512.0,59511.0,0.01124032]
[1617379267245,4.65721807,59512.0,59511.0,0.01124032]
[1617379267671,4.36727319,59512.0,59511.0,0.01124032]
[1617379267874,4.61940419,59512.0,59511.0,0.01124032]
[1617379268270,5.32440419,59512.0,59511.0,0.01124032]
[1617379268869,1.56227319,59512.0,59511.0,0.01124032]
[1617379269076,0.386021,59512.0,59511.0,0.01124032]
[1617379269876,3.662021,59512.0,59511.0,0.01124032]
[1617379270076,3.88434319,59512.0,59511.0,0.01124032]
[1617379270498,4.111021,59512.0,59511.0,0.01124032]
[1617379270701,4.73794319,59512.0,59511.0,0.01124032]
[1617379270900,4.99830054,59512.0,59511.0,0.01124032]
[1617379271098,4.59997835,59512.0,59511.0,0.01124032]
[1617379271701,4.99830054,59512.0,59511.0,0.01124032]
[1617379271903,5.47830054,59512.0,59511.0,0.01124032]
[1617379272710,4.59997835,59512.0,59511.0,0.01124032]
[1617379272928,1.00924135,59512.0,59511.0,0.01124032]
[1617379273123,0.38424135,59512.0,59511.0,0.01124032]
[1617379273319,0.38424135,59512.0,59511.0,0.01624032]
[1617379273523,0.38424135,59512.0,59511.0,0.01124032]
[1617379274319,0.00822035,59512.0,59511.0,0.01124032]
[1617379275125,3.02424535,59512.0,59511.0,0.01124032]
[1617379275544,0.39424535,59512.0,59511.0,0.01124032]
[1617379275776,1.13424535,59512.0,59511.0,0.01124032]
[1617379275968,0.39424535,59512.0,59511.0,0.01124032]
[1617379276171,0.00822035,59512.0,59511.0,0.01124032]
[1617379277777,0.00822035,59512.0,59511.0,0.15727132]
[1617379277971,0.00822035,59512.0,59511.0,0.01124032]
[1617379279179,3.98424535,59512.0,59511.0,0.01124032]
[1617379279382,1.12353754,59512.0,59511.0,1.06189705]
[1617379279581,0.73751254,59512.0,59511.0,0.01124032]
[1617379279774,0.33919035,59512.0,59511.0,0.01124032]
[1617379279978,0.81994007,59512.0,59511.0,0.01124032]
[1617379280177,0.99994007,59512.0,59511.0,0.01124032]
[1617379282799,1.41994007,59512.0,59511.0,0.01124032]
[1617379283196,0.99994007,59512.0,59511.0,0.01124032]
[1617379283418,0.61391507,59512.0,59511.0,0.00954032]
[1617379284222,0.99994007,59512.0,59511.0,0.00954032]
[1617379286038,0.66897007,59512.0,59511.0,0.00954032]
[1617379286243,0.28294507,59512.0,59511.0,0.00954032]
[1617379286443,0.10294507,59512.0,59511.0,0.00954032]
[1617379287646,0.10294507,59512.0,59511.0,1.01354032]
[1617379287846,0.10294507,59512.0,59511.0,1.15957132]
[1617379288246,0.10294507,59512.0,59511.0,0.35957132]
[1617379288443,0.10294507,59512.0,59511.0,1.35957132]
[1617379288693,0.10294507,59512.0,59511.0,0.89557132]
[1617379288890,0.10294507,59512.0,59511.0,0.35557132]
[1617379289491,0.10294507,59512.0,59511.0,0.35977132]
[1617379289688,0.10294507,59512.0,59511.0,0.64416984]
[1617379289890,0.10294507,59512.0,59511.0,0.64856984]
[1617379290091,0.10294507,59512.0,59511.0,0.35557132]
[1617379290492,0.10294507,59512.0,59511.0,1.35557132]
[1617379290690,0.10294507,59512.0,59511.0,1.35957132]
[1617379290927,0.10294507,59512.0,59511.0,1.35557132]
[1617379291326,0.10294507,59512.0,59511.0,1.35957132]
[1617379291533,0.10294507,59512.0,59511.0,1.39957132]
[1617379291738,0.10294507,59512.0,59511.0,5.01757132]
[1617379291939,0.09694507,59512.0,59511.0,6.01817132]
[1617379292135,0.13647107,59512.0,59511.0,6.11817132]
[1617379292334,0.13647107,59512.0,59511.0,6.11317132]
[1617379292533,0.17630289,59512.0,59511.0,6.11117132]
[1617379292732,0.08654507,59512.0,59511.0,6.90417132]
[1617379292936,0.55955888,59523.0,59512.0,3.87859852]
[1617379292937,0.00296409,59513.0,59512.0,3.87859852]
[1617379293134,0.03952117,59520.0,59513.0,5.58703591]
[1617379293336,0.09484562,59519.0,59514.0,4.87602]
[1617379293533,0.09484562,59519.0,59516.0,0.28859852]
[1617379293732,0.55955888,59523.0,59518.0,3.736007]
[1617379293938,0.55955888,59523.0,59519.0,1.0]
[1617379294139,0.55955888,59523.0,59520.0,0.195998]
[1617379294341,0.55955888,59523.0,59522.0,3.87859852]
[1617379294538,0.55955888,59523.0,59522.0,5.91563443]
[1617379294741,0.55955888,59523.0,59522.0,6.76863443]
[1617379295344,0.55955888,59523.0,59522.0,7.84363443]
[1617379296949,0.55955888,59523.0,59522.0,8.08363443]
[1617379297549,0.55955888,59523.0,59522.0,8.18476943]
[1617379297751,0.55955888,59523.0,59522.0,8.68476943]
[1617379297950,0.55955888,59523.0,59522.0,8.63476943]
[1617379298150,0.0395161,59532.0,59523.0,4.59303724]
[1617379298352,0.0395161,59532.0,59529.0,0.06718218]
[1617379298555,0.05065823,59544.0,59532.0,0.00303724]
[1617379298755,0.00196558,59547.0,59540.0,0.251933]
[1617379298955,0.00196549,59549.0,59540.0,0.251933]
[1617379299174,0.04575821,59550.0,59540.0,0.301933]
[1617379299374,0.04379272,59550.0,59536.0,0.05]
[1617379299575,0.04379272,59550.0,59541.0,0.29400504]
[1617379300172,0.04379272,59550.0,59542.0,0.96]
[1617379300972,0.04379272,59550.0,59542.0,0.17]
[1617379301173,0.04379272,59550.0,59542.0,0.22]
[1617379301800,0.04379272,59550.0,59543.0,0.79]
[1617379301997,0.04379272,59550.0,59544.0,0.255]
[1617379302196,0.04379272,59550.0,59544.0,0.305]
[1617379302400,0.04943981,59550.0,59545.0,0.245]
[1617379303400,0.00564709,59550.0,59545.0,0.245]
[1617379303596,0.00564709,59550.0,59546.0,0.145]
[1617379303799,0.00564709,59550.0,59547.0,0.29400504]
[1617379304197,0.00564709,59550.0,59546.0,0.145]
[1617379304427,0.00564709,59550.0,59542.0,1.281915]
[1617379304626,0.00564709,59550.0,59544.0,0.29400504]
[1617379305225,0.00564709,59550.0,59542.0,0.301915]
[1617379305430,0.9667,59553.0,59550.0,0.01626691]
[1617379305632,1.956017,59551.0,59550.0,0.01626691]
[1617379307474,2.746017,59551.0,59550.0,0.01626691]
[1617379307678,1.956017,59551.0,59550.0,0.01626691]
[1617379307876,0.386017,59551.0,59550.0,0.01626691]
[1617379308271,0.626017,59551.0,59550.0,0.01626691]
[1617379308475,1.786017,59551.0,59550.0,0.01626691]
[1617379308674,0.6316637,59551.0,59550.0,0.01626691]
[1617379308875,0.3916637,59551.0,59550.0,0.01626691]
[1617379311479,0.3916637,59551.0,59550.0,0.14829037]
[1617379312899,0.3916637,59551.0,59550.0,0.01626691]
[1617379314930,0.3916637,59551.0,59550.0,0.31027195]
[1617379315324,0.0056467,59551.0,59550.0,0.31027195]
[1617379315530,0.0056467,59551.0,59550.0,0.50527195]
[1617379316124,0.0056467,59551.0,59550.0,0.21126691]
[1617379316531,0.0056467,59551.0,59550.0,1.01626691]
[1617379316731,0.0056467,59551.0,59550.0,1.31027195]
[1617379316929,0.0047519,59551.0,59550.0,1.31027195]
[1617379317131,0.0047519,59551.0,59550.0,2.65227195]
[1617379317336,0.095184,59551.0,59550.0,3.80334995]
[1617379317581,0.03944907,59554.0,59550.0,4.25934995]
[1617379317767,0.03944907,59554.0,59553.0,3.641073]
[1617379317968,0.03944508,59561.0,59554.0,0.725]
[1617379318169,0.05099693,59561.0,59560.0,3.38282826]
[1617379318363,0.14616932,59561.0,59560.0,4.28388626]
[1617379318561,0.09517239,59561.0,59560.0,4.28388626]
[1617379318764,0.09517239,59561.0,59560.0,3.43388626]
[1617379318968,0.0394438,59564.0,59561.0,0.29400504]
[1617379319162,0.0394438,59564.0,59561.0,0.34400504]
[1617379319363,0.03944337,59565.0,59562.0,0.47]
[1617379319564,0.03944337,59565.0,59561.0,0.34400504]
[1617379319565,0.09387073,59563.0,59560.0,0.09282826]
[1617379319764,0.08887073,59563.0,59560.0,0.09282826]
[1617379319962,0.03444337,59565.0,59560.0,0.09282826]
[1617379320174,0.00564553,59564.0,59560.0,0.09282826]
[1617379320375,0.09379696,59563.0,59560.0,0.09282826]
[1617379320574,0.05093978,59563.0,59560.0,0.09282826]
[1617379321015,0.05093978,59563.0,59561.0,0.34506004]
[1617379321216,0.04593978,59563.0,59562.0,0.87]
[1617379321413,0.04593978,59563.0,59562.0,1.115]
[1617379322815,0.04593978,59563.0,59562.0,0.245]
[1617379323015,0.04593978,59563.0,59560.0,0.09282826]
[1617379323827,0.540017,59562.0,59560.0,0.09282826]
[1617379324024,0.29783478,59563.0,59554.0,0.29400504]
[1617379324025,0.386017,59561.0,59554.0,0.29400504]
[1617379324223,0.14,59560.0,59550.0,0.01626691]
[1617379325222,0.14,59560.0,59559.0,0.13546564]
[1617379325431,0.386017,59560.0,59559.0,0.13546564]
[1617379325635,0.04593978,59563.0,59559.0,1.81746564]
[1617379325830,0.04593978,59563.0,59560.0,0.29400504]
[1617379326225,0.04593978,59563.0,59559.0,0.13546564]
[1617379326428,0.04593978,59563.0,59559.0,0.18546564]
[1617379326624,0.04593978,59563.0,59560.0,0.29400504]
[1617379326834,0.01970452,59563.0,59561.0,0.091056]
[1617379327026,0.01970452,59563.0,59562.0,4.59]
[1617379327228,0.01970452,59563.0,59562.0,4.366054]
[1617379327625,0.01970452,59563.0,59562.0,0.34385438]
[1617379328255,0.01970452,59563.0,59562.0,0.30285]
[1617379328454,0.01970452,59563.0,59561.0,0.05]
[1617379328849,0.01470452,59563.0,59560.0,0.34280038]
[1617379329255,0.01470452,59563.0,59560.0,0.29280038]
[1617379329451,0.01470452,59563.0,59560.0,1.13280038]
[1617379329655,0.01470452,59563.0,59561.0,0.296055]
[1617379329853,1.0,59569.0,59562.0,4.59]
[1617379330052,1.0,59569.0,59568.0,1.95803006]
[1617379330452,1.0,59569.0,59568.0,0.16803006]
[1617379330879,1.0,59569.0,59568.0,0.11803006]
[1617379331076,1.0,59569.0,59568.0,0.25303006]
[1617379331482,1.386017,59569.0,59568.0,0.25303006]
[1617379331678,1.386017,59569.0,59568.0,0.11803006]
[1617379331881,1.3935009,59569.0,59568.0,0.11803006]
[1617379333085,0.96419675,59569.0,59568.0,4.29555778]
[1617379333307,0.96419675,59569.0,59568.0,5.29555778]
[1617379333510,0.7831404,59569.0,59568.0,6.13255778]
[1617379333706,0.7831404,59569.0,59568.0,6.38255778]
[1617379333913,0.7831404,59569.0,59568.0,7.38255778]
[1617379334106,0.37056383,59569.0,59568.0,7.38255778]
[1617379334712,0.02420496,59579.0,59569.0,4.59]
[1617379334914,0.02420496,59579.0,59574.0,0.39443792]
[1617379335110,0.02420496,59579.0,59578.0,4.07534254]
[1617379335311,0.0002,59586.0,59579.0,4.59]
[1617379335508,0.0002,59586.0,59583.0,0.051013]
[1617379335711,0.0006,59590.0,59584.0,3.77101]
[1617379335992,7.49862012,59588.0,59587.0,2.9162819]
[1617379336193,7.49862012,59588.0,59587.0,0.8429869]
[1617379336391,7.21697452,59588.0,59587.0,0.4079869]
[1617379336598,7.61529671,59588.0,59587.0,1.4079869]
[1617379336792,6.92195828,59588.0,59587.0,4.48396486]
[1617379336995,6.92195828,59588.0,59587.0,6.03396486]
[1617379337194,6.91695828,59588.0,59587.0,6.56345572]
[1617379337394,6.9244398,59588.0,59587.0,3.19345572]
[1617379337593,6.9244398,59588.0,59587.0,7.50345572]
[1617379337594,6.89820454,59588.0,59587.0,7.50345572]
[1617379337800,6.75142765,59588.0,59587.0,9.22296486]
[1617379337994,6.75142765,59588.0,59587.0,9.27396886]
[1617379338197,6.43220254,59588.0,59587.0,8.38496886]
[1617379338395,6.43220254,59588.0,59587.0,9.31396886]
[1617379338610,6.43220254,59588.0,59587.0,8.43396886]
[1617379338810,6.1286203,59588.0,59587.0,8.48394584]
[1617379339012,6.17904499,59588.0,59587.0,8.58394584]
[1617379339213,6.18101534,59588.0,59587.0,8.58394584]
[1617379339410,5.87838731,59588.0,59587.0,8.58394584]
[1617379339609,5.87838731,59588.0,59587.0,9.46394584]
[1617379339810,5.87838731,59588.0,59587.0,8.94394584]
[1617379340012,5.57873753,59588.0,59587.0,8.94394584]
[1617379340412,5.57373753,59588.0,59587.0,8.94394584]
[1617379340610,5.30099314,59588.0,59587.0,6.49494584]
[1617379340814,5.29902279,59588.0,59587.0,3.42494584]
[1617379341011,5.26177858,59588.0,59587.0,7.05394184]
[1617379341246,5.09948001,59588.0,59587.0,4.35494484]
[1617379341449,5.09750965,59588.0,59587.0,4.01896688]
[1617379341851,4.95748539,59588.0,59587.0,6.23896688]
[1617379342048,4.95748539,59588.0,59587.0,4.55896688]
[1617379342250,4.95748539,59588.0,59587.0,3.55896688]
[1617379342449,4.95748539,59588.0,59587.0,4.43896688]
[1617379342652,4.95551506,59588.0,59587.0,4.89896688]
[1617379343050,4.95551506,59588.0,59587.0,4.93896688]
[1617379343250,4.93125012,59588.0,59587.0,3.89896688]
[1617379343451,4.74260786,59588.0,59587.0,3.89896688]
[1617379343653,4.74260786,59588.0,59587.0,4.89896688]
[1617379344069,4.69218317,59588.0,59587.0,5.1789899]
[1617379344269,4.69021285,59588.0,59587.0,3.9389899]
[1617379344471,4.69021285,59588.0,59587.0,2.9389899]
[1617379344671,4.69021285,59588.0,59587.0,4.8879869]
[1617379344873,4.69021285,59588.0,59587.0,5.1379869]
[1617379345071,4.69021285,59588.0,59587.0,7.10614498]
[1617379345271,4.69021285,59588.0,59587.0,7.15714798]
[1617379345470,4.69021285,59588.0,59587.0,7.81425798]
[1617379345670,4.69021285,59588.0,59587.0,7.86444725]
[1617379345871,4.69021285,59588.0,59587.0,1.69444725]
[1617379346074,4.69021285,59588.0,59587.0,1.64344425]
[1617379346277,4.69021285,59588.0,59587.0,1.7050969]
[1617379346684,4.69021285,59588.0,59587.0,1.33818556]
[1617379347090,4.69021285,59588.0,59587.0,3.96818556]
[1617379347284,4.69021285,59588.0,59587.0,5.31818556]
[1617379347484,4.69021285,59588.0,59587.0,6.47518904]
[1617379347684,4.69021285,59588.0,59587.0,6.72518904]
[1617379347884,4.69021285,59588.0,59587.0,6.61918856]
[1617379348086,4.69021285,59588.0,59587.0,6.99918856]
[1617379348284,4.69021285,59588.0,59587.0,5.26685661]
[1617379348484,4.69021285,59588.0,59587.0,4.38685661]
[1617379348687,4.69021285,59588.0,59587.0,4.34685661]
[1617379348887,4.69021285,59588.0,59587.0,4.1389899]
[1617379349109,4.69021285,59588.0,59587.0,5.0589899]
[1617379349308,4.69021285,59588.0,59587.0,3.7989899]
[1617379349515,4.69021285,59588.0,59587.0,4.6889899]
[1617379349713,4.69021285,59588.0,59587.0,4.1389899]
[1617379350309,4.69021285,59588.0,59587.0,5.1389899]
[1617379350510,4.49481285,59588.0,59587.0,6.0689899]
[1617379350711,4.49481285,59588.0,59587.0,6.23150316]
[1617379350993,4.49312557,59588.0,59587.0,8.16167159]
[1617379351593,3.34163343,59588.0,59587.0,8.16167159]
[1617379351996,2.34273343,59588.0,59587.0,8.16167159]
[1617379352597,2.31434566,59588.0,59587.0,8.16167159]
[1617379352797,2.17179608,59588.0,59587.0,8.66167159]
[1617379352995,2.17179608,59588.0,59587.0,8.82527159]
[1617379353198,2.11191319,59588.0,59587.0,8.82527159]
[1617379353797,2.04615857,59588.0,59587.0,8.82027159]
[1617379354395,1.98915893,59588.0,59587.0,6.94027159]
[1617379354596,2.70044936,59588.0,59587.0,8.77010316]
[1617379354796,1.70154936,59588.0,59587.0,8.77010316]
[1617379354998,1.64223444,59588.0,59587.0,8.77010316]
[1617379355497,0.64333444,59588.0,59587.0,8.77010316]
[1617379355696,0.64333444,59588.0,59587.0,6.72650316]
[1617379355897,0.64333444,59588.0,59587.0,7.60650316]
[1617379356100,0.39333444,59588.0,59587.0,7.16650316]
[1617379356299,0.00624308,59590.0,59588.0,4.62]
[1617379356499,0.0006,59592.0,59591.0,3.80661013]
[1617379356701,0.0006,59592.0,59591.0,5.695995]
[1617379356899,0.0006,59592.0,59591.0,5.86576862]
[1617379358300,0.05029589,59592.0,59591.0,5.86576862]
[1617379358502,0.05029589,59592.0,59591.0,1.05618177]
[1617379358902,0.05029589,59592.0,59591.0,3.68576862]
[1617379359106,0.0002,59593.0,59591.0,3.92576862]
[1617379359312,0.0002,59593.0,59592.0,0.695993]
[1617379359515,0.0002,59593.0,59587.0,0.9962819]
[1617379359722,0.45743,59593.0,59587.0,0.9962819]
[1617379359915,0.45703,59593.0,59587.0,0.9962819]
[1617379360122,0.002,59590.0,59587.0,0.9962819]
[1617379360318,0.595,59589.0,59588.0,0.050997]
[1617379360519,0.052,59590.0,59587.0,0.9962819]
[1617379361118,0.052,59590.0,59587.0,0.89]
[1617379361517,1.0,59589.0,59587.0,0.89]
[1617379361718,0.052,59590.0,59587.0,0.89]
[1617379361918,0.042,59590.0,59587.0,0.89]
[1617379362337,0.042,59590.0,59585.0,0.017]
[1617379362939,0.43,59589.0,59585.0,0.017]
[1617379363140,0.042,59590.0,59583.0,0.017]
[1617379363339,0.042,59590.0,59587.0,0.051002]
[1617379363537,0.293745,59590.0,59586.0,3.555]
[1617379363743,0.293745,59590.0,59587.0,0.067002]
[1617379363937,0.815,59589.0,59586.0,3.555]
[1617379364137,0.291745,59590.0,59587.0,0.051002]
[1617379364338,0.09574751,59588.0,59586.0,3.505]
[1617379364537,0.09574654,59589.0,59586.0,3.505]
[1617379364739,0.16,59588.0,59586.0,3.505]
[1617379365185,3.87075008,59587.0,59586.0,3.505]
[1617379365381,3.87075008,59587.0,59569.0,3.506]
[1617379365382,0.3142388,59586.0,59569.0,3.506]
[1617379365584,0.07325,59573.0,59569.0,3.506]
[1617379365782,3.041,59570.0,59569.0,3.506]
[1617379366043,3.041,59570.0,59552.0,1.0682]
[1617379366044,3.87033919,59570.0,59552.0,1.0682]
[1617379366241,0.00303724,59569.0,59557.0,0.017]
[1617379366437,0.002,59564.0,59552.0,0.167]
[1617379366637,0.00303724,59563.0,59552.0,0.167]
[1617379366837,0.002,59560.0,59547.0,0.017]
[1617379367037,0.002,59557.0,59547.0,0.017]
[1617379367238,0.002,59557.0,59539.0,1.579603]
[1617379367442,0.002,59553.0,59541.0,0.022]
[1617379367642,0.002,59553.0,59545.0,0.051087]
[1617379367837,0.23449829,59556.0,59549.0,0.05108]
[1617379368038,0.23449829,59556.0,59551.0,0.3142388]
[1617379368240,0.23649829,59556.0,59545.0,0.3142388]
[1617379368435,0.23649829,59556.0,59546.0,0.051079]
[1617379368640,0.002,59554.0,59546.0,0.051079]
[1617379368836,0.002,59554.0,59547.0,0.017]
[1617379369238,0.002,59554.0,59545.0,0.3142388]
[1617379369439,0.002,59554.0,59546.0,0.067082]
[1617379369639,0.002,59554.0,59546.0,0.016]
[1617379369836,0.0520045,59554.0,59546.0,0.016]
[1617379370639,0.0500045,59554.0,59546.0,0.016]
[1617379371238,0.0500045,59554.0,59549.0,0.592]
[1617379371434,0.0500045,59554.0,59550.0,0.051077]
[1617379371634,0.0500045,59554.0,59553.0,0.051073]
[1617379372038,0.0500045,59554.0,59550.0,0.016267]
[1617379372236,0.0500045,59554.0,59551.0,0.661075]
[1617379372637,0.002,59555.0,59552.0,0.65]
[1617379372845,0.44758,59560.0,59552.0,0.65]
[1617379373045,0.002,59560.0,59552.0,0.65]
[1617379373252,0.251907,59553.0,59550.0,0.016267]
[1617379373446,0.251907,59553.0,59551.0,0.051071]
[1617379374047,0.246907,59553.0,59551.0,0.051071]
[1617379374454,0.251886,59559.0,59552.0,3.876074]
[1617379374756,0.251886,59559.0,59553.0,0.3188388]
[1617379374951,0.251886,59559.0,59555.0,0.3142388]
[1617379375156,0.153,59565.0,59556.0,0.051065]
[1617379375365,0.002,59566.0,59556.0,0.051065]
[1617379375566,0.39532219,59570.0,59560.0,0.0046]
[1617379375767,0.1503,59570.0,59561.0,0.155]
[1617379375966,0.1503,59570.0,59560.0,0.0046]
[1617379375967,0.386017,59569.0,59560.0,0.0046]
[1617379376167,0.25186,59563.0,59559.0,0.004]
[1617379376363,0.002,59562.0,59553.0,0.3142388]
[1617379376568,0.002,59562.0,59553.0,0.004]
[1617379376769,0.002,59562.0,59554.0,0.225]
[1617379376970,0.2145324,59561.0,59554.0,0.225]
[1617379377171,0.2145324,59561.0,59546.0,0.183]
[1617379377365,0.002,59559.0,59546.0,0.167]
[1617379377769,0.002,59559.0,59550.0,0.07700113]
[1617379378010,0.49387948,59558.0,59551.0,0.051066]
[1617379378209,0.79645948,59558.0,59550.0,0.07700113]
[1617379378418,0.79645948,59558.0,59550.0,0.08120113]
[1617379378607,0.79645948,59558.0,59550.0,0.07700113]
[1617379378808,0.79645948,59558.0,59551.0,0.17]
[1617379379412,0.55446,59558.0,59552.0,0.051072]
[1617379379814,0.55446,59558.0,59551.0,0.17]
[1617379380016,0.55446,59558.0,59552.0,0.051071]
[1617379380213,0.2145324,59557.0,59552.0,0.051071]
[1617379380619,0.2145324,59557.0,59550.0,0.07700113]
[1617379380824,0.36629,59558.0,59553.0,0.245]
[1617379381295,0.5808224,59558.0,59552.0,0.004]
[1617379381894,0.5808224,59558.0,59550.0,0.07700113]
[1617379382103,0.251884,59555.0,59551.0,0.051072]
[1617379382296,0.251884,59555.0,59553.0,0.33]
[1617379382498,0.251884,59555.0,59554.0,0.05107]
[1617379382698,0.251884,59555.0,59554.0,0.64107]
[1617379382902,0.251884,59555.0,59554.0,0.05107]
[1617379383305,0.38614901,59564.0,59554.0,1.05107]